bitfinex/quotes_BTCUSD_20260117
["timestamp","ask_amount","ask_price","bid_price","bid_amount"]
[1768619966714,0.01049868,95250.0,95244.0,0.06299602]
[1768619967158,0.06299479,95246.0,95240.0,0.01049979]
[1768619967379,0.00949532,95246.0,95241.0,0.01049967]
[1768619967598,0.00910021,95246.0,95240.0,0.01049979]
[1768619968052,0.05249623,95245.0,95239.0,0.0104999]
[1768619968274,0.05249623,95245.0,95240.0,0.01049979]
[1768619968517,0.00910021,95246.0,95240.0,0.01049979]
[1768619968738,0.06150501,95246.0,95241.0,0.01049967]
[1768619969419,0.06150501,95246.0,95240.0,0.01049979]
[1768619969640,0.05249674,95244.0,95238.0,0.0209998]
[1768619969857,0.05210129,95245.0,95239.0,0.0104999]
[1768619970302,0.01049901,95247.0,95240.0,0.05249894]
[1768619970527,0.01049912,95246.0,95241.0,0.01049967]
[1768619970998,0.06299478,95246.0,95241.0,0.01049967]
[1768619971216,0.01040823,95246.0,95241.0,0.01049967]
[1768619971911,0.01040823,95246.0,95242.0,0.01049956]
[1768619972138,0.01040823,95246.0,95241.0,0.01049967]
[1768619972370,0.0101039,95247.0,95242.0,0.01049956]
[1768619972593,0.0101039,95247.0,95241.0,0.06299804]
[1768619972594,0.06299513,95246.0,95241.0,0.01049967]
[1768619972804,0.0629949,95246.0,95241.0,0.01049967]
[1768619975607,0.01049912,95246.0,95241.0,0.01049967]
[1768619975789,0.06290397,95246.0,95241.0,0.01049967]
[1768619975949,0.01040822,95246.0,95241.0,0.01049967]
[1768619976285,0.06290397,95246.0,95241.0,0.01049967]
[1768619976489,0.06281308,95246.0,95240.0,0.01049979]
[1768619976738,0.06281308,95246.0,95241.0,0.01049967]
[1768619976950,0.05249628,95245.0,95240.0,0.01049979]
[1768619977560,0.05249674,95244.0,95239.0,0.0104999]
[1768619977765,0.05249632,95245.0,95239.0,0.0104999]
[1768619978197,0.05249632,95245.0,95240.0,0.01049979]
[1768619978402,0.05249632,95245.0,95239.0,0.0104999]
[1768619978577,0.05249674,95244.0,95240.0,0.01049979]
[1768619979498,0.05249674,95244.0,95239.0,0.0104999]
[1768619979718,0.05249674,95244.0,95240.0,0.01049979]
[1768619979899,0.05249635,95245.0,95240.0,0.01049979]
[1768619980258,0.05249635,95245.0,95239.0,0.0104999]
[1768619980476,0.05249643,95245.0,95240.0,0.01049979]
[1768619982830,0.05249674,95244.0,95239.0,0.0104999]
[1768619983035,0.05249674,95244.0,95240.0,0.01049979]
[1768619983457,0.05249674,95244.0,95239.0,0.0104999]
[1768619983887,0.01031733,95246.0,95240.0,0.01049979]
[1768619984108,0.06281308,95246.0,95241.0,0.01049967]
[1768619984323,0.01031733,95246.0,95241.0,0.01049967]
[1768619984547,0.06281326,95246.0,95239.0,0.0104999]
[1768619984787,0.05249661,95245.0,95240.0,0.01049979]
[1768619985010,0.05249661,95245.0,95239.0,0.0104999]
[1768619985226,0.05249674,95244.0,95239.0,0.0104999]
[1768619986161,1e-08,95240.0,95235.0,0.12813017]
[1768619986598,0.0104999,95239.0,95235.0,0.12813017]
[1768619986823,0.0104999,95239.0,95235.0,0.13863051]
[1768619987044,0.01050001,95238.0,95235.0,0.12813017]
[1768619987277,0.0104999,95239.0,95235.0,0.01049979]
[1768619987494,1e-08,95240.0,95235.0,0.01049979]
[1768619987711,0.0104998,95240.0,95236.0,0.01050023]
[1768619988580,0.0104998,95240.0,95235.0,0.02100013]
[1768619988799,0.0104999,95239.0,95235.0,0.02100013]
[1768619989900,1e-08,95240.0,95236.0,0.01050023]
[1768619990316,1e-08,95240.0,95237.0,0.01050012]
[1768619992394,1e-08,95240.0,95237.0,0.06300055]
[1768619992531,1e-08,95240.0,95237.0,0.06300054]
[1768619992736,1e-08,95240.0,95237.0,0.01050012]
[1768619993353,1e-08,95240.0,95238.0,0.05250005]
[1768619993585,1e-08,95240.0,95237.0,0.01050012]
[1768619994401,0.01049956,95242.0,95237.0,0.01050012]
[1768619994582,0.0097091,95242.0,95237.0,0.01050012]
[1768619994977,0.01049967,95241.0,95237.0,0.01050012]
[1768619995390,0.01049967,95241.0,95236.0,0.01050023]
[1768619995755,0.01049967,95241.0,95237.0,0.01050012]
[1768619996370,0.01010451,95241.0,95237.0,0.01050012]
[1768619996569,0.01010426,95243.0,95238.0,0.01050001]
[1768619996907,0.01049967,95241.0,95237.0,0.01050012]
[1768619997469,0.01010446,95241.0,95237.0,0.01050012]
[1768619998245,0.01049956,95242.0,95237.0,0.01050012]
[1768619998622,0.06260172,95243.0,95238.0,0.01050001]
[1768619998830,0.01010426,95243.0,95238.0,0.01050001]
[1768619999038,0.01049956,95242.0,95238.0,0.01050001]
[1768620000233,0.01049979,95240.0,95236.0,0.01050023]
[1768620000429,0.01049979,95240.0,95235.0,0.02100013]
[1768620000642,0.01050001,95238.0,95235.0,0.01049979]
[1768620000848,0.01049956,95242.0,95234.0,0.01065885]
[1768620001062,0.01049979,95240.0,95234.0,0.06316107]
[1768620001329,0.01049967,95241.0,95236.0,0.06300137]
[1768620001539,0.01049979,95240.0,95236.0,0.01050023]
[1768620001751,0.01049979,95240.0,95235.0,0.01050034]
[1768620001969,0.01049967,95241.0,95237.0,0.01050012]
[1768620002586,0.01049956,95242.0,95238.0,0.01050001]
[1768620002786,0.01049967,95241.0,95237.0,0.01050012]
[1768620003451,0.05249862,95241.0,95236.0,0.01050023]
[1768620003688,0.0104999,95239.0,95235.0,0.01050034]
[1768620003893,0.01049979,95240.0,95235.0,0.01050034]
[1768620004100,0.0104999,95239.0,95234.0,0.01065885]
[1768620004310,0.06300052,95238.0,95234.0,0.0001584]
[1768620004531,0.0104999,95239.0,95234.0,0.01065885]
[1768620004744,0.0104999,95239.0,95235.0,0.01050034]
[1768620004951,0.01049979,95240.0,95235.0,0.06300179]
[1768620005166,0.01049967,95241.0,95236.0,0.01050023]
[1768620005372,0.01049979,95240.0,95236.0,0.01050023]
[1768620005788,0.01049967,95241.0,95237.0,0.01050012]
[1768620005994,0.01049956,95242.0,95237.0,0.01050012]
[1768620006209,0.01049967,95241.0,95237.0,0.01050012]
[1768620006627,0.01049956,95242.0,95238.0,0.01050001]
[1768620007102,0.01049956,95242.0,95237.0,0.01050012]
[1768620007649,0.0104999,95239.0,95235.0,0.01050034]
[1768620007876,0.0104999,95239.0,95234.0,0.01065885]
[1768620008098,0.0104999,95239.0,95235.0,0.01050034]
[1768620009806,0.01049967,95241.0,95236.0,0.01050023]
[1768620009940,0.0104999,95239.0,95235.0,0.01050034]
[1768620010141,0.01050001,95238.0,95234.0,0.01065885]
[1768620010369,0.0104999,95239.0,95235.0,0.01050034]
[1768620010965,0.0104999,95239.0,95234.0,0.01065885]
[1768620012081,0.01049979,95240.0,95236.0,0.01050023]
[1768620012437,0.01049979,95240.0,95235.0,0.01050034]
[1768620012619,0.01049979,95240.0,95236.0,0.01050023]
[1768620012821,0.0104999,95239.0,95235.0,0.01050034]
[1768620013251,0.01050001,95238.0,95234.0,0.01065885]
[1768620014366,0.01049979,95240.0,95234.0,0.01065885]
[1768620014543,0.0104999,95239.0,95235.0,0.01050034]
[1768620014911,0.01049967,95241.0,95236.0,0.01050023]
[1768620015114,0.01049967,95241.0,95237.0,0.01050012]
[1768620015422,0.01049979,95240.0,95236.0,0.01050023]
[1768620015614,0.01049967,95241.0,95237.0,0.01050012]
[1768620015756,0.01049967,95241.0,95236.0,0.01050023]
[1768620016571,0.01049956,95242.0,95238.0,0.01050001]
[1768620017261,0.01049934,95244.0,95239.0,0.0104999]
[1768620017467,0.01049945,95243.0,95239.0,0.0104999]
[1768620017674,0.01049945,95243.0,95238.0,0.01050001]
[1768620018388,0.01049956,95242.0,95238.0,0.01050001]
[1768620019118,0.01049945,95243.0,95239.0,0.0104999]
[1768620019947,0.01049934,95244.0,95239.0,0.0104999]
[1768620020153,0.01049945,95243.0,95239.0,0.0104999]
[1768620020365,0.01049945,95243.0,95238.0,0.01050001]
[1768620020566,0.01049956,95242.0,95238.0,0.01050001]
[1768620020925,0.01049979,95240.0,95235.0,0.01050034]
[1768620021106,0.01049967,95241.0,95236.0,0.01050023]
[1768620021309,0.01049979,95240.0,95236.0,0.01050023]
[1768620021936,0.0104999,95239.0,95234.0,0.01065885]
[1768620022140,0.01040898,95239.0,95234.0,0.01065885]
[1768620022322,0.01050001,95238.0,95234.0,0.01065885]
[1768620023716,0.0104999,95239.0,95234.0,0.01065885]
[1768620024798,0.0104999,95239.0,95235.0,0.01050034]
[1768620025011,0.0104999,95239.0,95234.0,0.0001584]
[1768620025233,0.0104999,95239.0,95234.0,0.01065885]
[1768620025631,0.01050012,95237.0,95234.0,0.0001584]
[1768620026557,0.01050001,95238.0,95234.0,0.01065885]
[1768620026738,0.0104999,95239.0,95235.0,0.01050034]
[1768620027156,0.01049979,95240.0,95236.0,0.01050023]
[1768620027361,0.01049979,95240.0,95235.0,0.01050034]
[1768620027534,0.0104999,95239.0,95234.0,0.01065885]
[1768620028090,0.0104999,95239.0,95235.0,0.01050034]
[1768620029328,0.01049979,95240.0,95236.0,0.01050023]
[1768620030049,0.01049956,95242.0,95237.0,0.01050012]
[1768620030279,0.01049956,95242.0,95238.0,0.01050001]
[1768620031188,0.01049956,95242.0,95237.0,0.01050012]
[1768620031412,0.01049956,95242.0,95238.0,0.01050001]
[1768620031728,0.01049945,95243.0,95238.0,0.01050001]
[1768620031881,0.01049923,95245.0,95239.0,0.0104999]
[1768620032291,0.06299554,95245.0,95239.0,0.0104999]
[1768620032517,0.01049934,95244.0,95239.0,0.0104999]
[1768620032919,0.01049934,95244.0,95240.0,0.01049979]
[1768620034865,0.01049934,95244.0,95239.0,0.0104999]
[1768620034866,0.01049945,95243.0,95239.0,0.0104999]
[1768620035217,0.01049923,95245.0,95240.0,0.01049979]
[1768620036272,0.01049934,95244.0,95240.0,0.01049979]
[1768620036498,0.01049934,95244.0,95239.0,0.0104999]
[1768620036894,0.06299613,95244.0,95239.0,0.0104999]
[1768620037238,0.01049934,95244.0,95239.0,0.0104999]
[1768620037433,0.06299623,95244.0,95239.0,0.0104999]
[1768620038253,0.01049945,95243.0,95239.0,0.0104999]
[1768620038659,0.01049934,95244.0,95239.0,0.0104999]
[1768620039071,0.01049945,95243.0,95239.0,0.0104999]
[1768620039547,0.01049934,95244.0,95240.0,0.01049979]
[1768620039752,0.01049945,95243.0,95239.0,0.0104999]
[1768620039956,0.01049934,95244.0,95240.0,0.01049979]
[1768620040164,0.01049945,95243.0,95239.0,0.0104999]
[1768620040369,0.01049956,95242.0,95238.0,0.01030252]
[1768620040886,0.01049934,95244.0,95239.0,0.0104999]
[1768620041092,0.01049934,95244.0,95240.0,0.01049979]
[1768620041291,0.01049923,95245.0,95241.0,0.01049967]
[1768620042023,0.01049923,95245.0,95241.0,0.01045422]
[1768620042289,0.13769901,95247.0,95242.0,0.01049956]
[1768620042501,0.1272,95247.0,95244.0,0.01049934]
[1768620042905,0.13769901,95247.0,95243.0,0.01049945]
[1768620043110,0.1272,95247.0,95244.0,0.01049934]
[1768620043312,0.10705141,95247.0,95244.0,0.06299591]
[1768620043519,0.10705141,95247.0,95244.0,0.01049934]
[1768620043974,0.10705141,95247.0,95244.0,0.06299565]
[1768620045314,0.01049802,95256.0,95251.0,0.01049857]
[1768620045739,0.01049802,95256.0,95249.0,0.01049879]
[1768620045740,0.01049824,95254.0,95249.0,0.01049879]
[1768620046110,0.01049846,95252.0,95247.0,0.01049901]
[1768620046417,0.01049835,95253.0,95248.0,0.0104989]
[1768620046790,0.01049835,95253.0,95248.0,0.06299339]
[1768620047430,0.01049835,95253.0,95249.0,0.01049879]
[1768620048049,0.01049824,95254.0,95250.0,0.01049868]
[1768620048969,0.01049824,95254.0,95249.0,0.01049879]
[1768620049205,0.01049835,95253.0,95249.0,0.01049879]
[1768620049436,0.01049835,95253.0,95248.0,0.0104989]
[1768620049643,0.01049835,95253.0,95249.0,0.01049879]
[1768620049856,0.01049835,95253.0,95248.0,0.0104989]
[1768620050262,0.01049835,95253.0,95249.0,0.01049879]
[1768620050471,0.01049846,95252.0,95248.0,0.0104989]
[1768620050851,0.01049835,95253.0,95248.0,0.01030141]
[1768620051053,0.01049835,95253.0,95249.0,0.01049879]
[1768620052211,0.01049846,95252.0,95248.0,0.01030141]
[1768620053045,0.01049846,95252.0,95248.0,0.01007113]
[1768620054216,0.01049846,95252.0,95246.0,0.01049912]
[1768620054478,0.01049857,95251.0,95246.0,0.01049912]
[1768620054864,0.01049868,95250.0,95245.0,0.05795464]
[1768620055677,0.01049857,95251.0,95246.0,0.01049912]
[1768620055880,0.01049868,95250.0,95245.0,0.05795464]
[1768620056082,0.01049868,95250.0,95245.0,0.11045045]
[1768620056290,0.01049868,95250.0,95245.0,0.05795464]
[1768620056499,0.06299277,95249.0,95245.0,0.04745541]
[1768620056679,0.01049879,95249.0,95245.0,0.04745541]
[1768620057493,0.0104989,95248.0,95245.0,0.04745541]
[1768620058215,0.01049879,95249.0,95245.0,0.04745541]
[1768620058771,0.01049868,95250.0,95245.0,0.05795464]
[1768620058998,0.01049879,95249.0,95245.0,0.05795464]
[1768620059161,0.0104989,95248.0,95245.0,0.04745541]
[1768620059804,0.0104989,95248.0,95245.0,0.04725828]
[1768620060495,0.01049868,95250.0,95245.0,0.05756038]
[1768620060709,0.01049857,95251.0,95247.0,0.01049901]
[1768620061013,0.01049846,95252.0,95248.0,0.0104989]
[1768620061214,0.01049846,95252.0,95248.0,0.01030178]
[1768620061437,0.01049857,95251.0,95247.0,0.01049901]
[1768620061634,0.01049846,95252.0,95248.0,0.0104989]
[1768620061847,0.17969176,95255.0,95251.0,0.01049857]
[1768620061848,0.01049813,95255.0,95251.0,0.01049857]
[1768620062070,0.05248917,95258.0,95253.0,0.04600204]
[1768620062420,0.05248917,95258.0,95253.0,0.04580494]
[1768620062694,0.05248966,95257.0,95252.0,0.01049846]
[1768620062945,0.05248966,95257.0,95252.0,0.01030136]
[1768620063141,0.01049813,95255.0,95250.0,0.04600204]
[1768620063379,0.01049835,95253.0,95246.0,0.01049912]
[1768620063617,0.01049835,95253.0,95249.0,0.01049879]
[1768620064327,0.01049846,95252.0,95248.0,0.0104989]
[1768620064782,0.01049835,95253.0,95249.0,0.01049879]
[1768620065219,0.01049846,95252.0,95248.0,0.0104989]
[1768620065380,0.01049824,95254.0,95249.0,0.01049879]
[1768620065829,0.01049824,95254.0,95250.0,0.01049868]
[1768620066239,0.01049824,95254.0,95248.0,0.06299328]
[1768620066240,0.06299013,95253.0,95248.0,0.0104989]
[1768620067010,0.06299108,95252.0,95247.0,0.01049901]
[1768620067140,0.01049857,95251.0,95247.0,0.01049901]
[1768620067345,0.01049868,95250.0,95246.0,0.04600204]
[1768620067551,0.01049846,95252.0,95247.0,0.01049901]
[1768620067774,0.01049846,95252.0,95248.0,0.0104989]
[1768620067972,0.01049857,95251.0,95247.0,0.01049901]
[1768620068132,0.01049846,95252.0,95247.0,0.01049901]
[1768620068334,0.01049846,95252.0,95248.0,0.0104989]
[1768620068761,0.01049857,95251.0,95247.0,0.01049901]
[1768620069191,0.01049846,95252.0,95248.0,0.0104989]
[1768620069388,0.01049846,95252.0,95247.0,0.01049901]
[1768620069628,0.01049857,95251.0,95247.0,0.01049901]
[1768620070105,0.01049824,95254.0,95250.0,0.01049868]
[1768620070330,0.01049813,95255.0,95251.0,0.01049857]
[1768620071058,0.01049824,95254.0,95250.0,0.01049868]
[1768620071601,0.01049835,95253.0,95249.0,0.01049879]
[1768620071822,0.01049835,95253.0,95248.0,0.0104989]
[1768620072047,0.01049846,95252.0,95248.0,0.0104989]
[1768620073949,0.01049824,95254.0,95250.0,0.01049868]
[1768620075381,0.01049835,95253.0,95249.0,0.01049879]
[1768620075787,0.01049824,95254.0,95249.0,0.01049879]
[1768620076011,0.01049824,95254.0,95250.0,0.01049868]
[1768620076168,0.01049813,95255.0,95251.0,0.01049857]
[1768620077851,0.01049824,95254.0,95250.0,0.01049868]
[1768620079897,0.01049813,95255.0,95251.0,0.01049857]
[1768620080523,0.01049824,95254.0,95249.0,0.01049879]
[1768620080921,0.01049824,95254.0,95250.0,0.01049868]
[1768620081533,0.01049813,95255.0,95251.0,0.01049857]
[1768620081950,0.01049824,95254.0,95249.0,0.01049879]
[1768620083375,0.01049835,95253.0,95249.0,0.01049879]
[1768620085765,0.01049824,95254.0,95249.0,0.01049879]
[1768620085985,0.01049835,95253.0,95248.0,0.0104989]
[1768620086177,0.01049846,95252.0,95248.0,0.0104989]
[1768620088027,0.01049824,95254.0,95249.0,0.01049879]
[1768620088635,0.01049824,95254.0,95249.0,0.06299241]
[1768620089271,0.01049824,95254.0,95250.0,0.01049868]
[1768620090213,0.01049813,95255.0,95251.0,0.01049857]
[1768620090655,0.02099692,95256.0,95252.0,0.01049846]
[1768620090864,0.01049813,95255.0,95250.0,0.01049868]
[1768620091070,0.01049813,95255.0,95251.0,0.01049857]
[1768620091278,0.02099692,95256.0,95251.0,0.01049857]
[1768620091501,0.0104989,95256.0,95253.0,0.01049835]
[1768620091709,0.0104989,95256.0,95253.0,0.06298978]
[1768620091992,0.1272,95259.0,95255.0,0.06298881]
[1768620092195,0.1272,95259.0,95255.0,0.06298865]
[1768620092378,0.03149359,95258.0,95255.0,0.01049813]
[1768620092980,0.1272,95259.0,95255.0,0.01049813]
[1768620093359,0.15869359,95259.0,95255.0,0.01049813]
[1768620094196,0.16919128,95259.0,95254.0,0.01049824]
[1768620094403,0.16919128,95259.0,95253.0,0.01049835]
[1768620094644,0.16919128,95259.0,95254.0,0.01049824]
[1768620094872,0.13769769,95259.0,95254.0,0.01049824]
[1768620095065,0.0104978,95258.0,95254.0,0.01049824]
[1768620095266,0.0104978,95258.0,95253.0,0.01049835]
[1768620096011,0.01049791,95257.0,95252.0,0.01049846]
[1768620096226,0.01049791,95257.0,95253.0,0.01049835]
[1768620097415,0.01049791,95257.0,95252.0,0.01049846]
[1768620097637,0.01049791,95257.0,95253.0,0.01049835]
[1768620098665,0.01049802,95256.0,95252.0,0.01049846]
[1768620098958,0.01049791,95257.0,95253.0,0.01049835]
[1768620099965,0.0104978,95258.0,95254.0,0.01049824]
[1768620100787,0.01049791,95257.0,95253.0,0.01049835]
[1768620101194,0.1376978,95258.0,95253.0,0.01049835]
[1768620101899,0.01049791,95257.0,95253.0,0.01049835]
[1768620102120,0.14819637,95258.0,95253.0,0.01049835]
[1768620102299,0.01049802,95256.0,95252.0,0.01049846]
[1768620103805,0.01049813,95255.0,95250.0,0.01049868]
[1768620104155,0.01049813,95255.0,95249.0,0.01049879]
[1768620104333,0.01049824,95254.0,95250.0,0.01049868]
[1768620105172,0.01049813,95255.0,95250.0,0.01049868]
[1768620106372,0.01049813,95255.0,95251.0,0.01049857]
[1768620107703,0.01049802,95256.0,95252.0,0.01049846]
[1768620108607,0.01049791,95257.0,95253.0,0.01049835]
[1768620110094,0.14819637,95258.0,95253.0,0.01049835]
[1768620110609,0.14819637,95258.0,95254.0,0.01049824]
[1768620111555,0.13769857,95258.0,95254.0,0.01049824]
[1768620112571,0.14819637,95258.0,95253.0,0.01049835]
[1768620113120,0.01049791,95257.0,95253.0,0.01049835]
[1768620113520,0.01049791,95257.0,95252.0,0.01049846]
[1768620113749,0.01049791,95257.0,95253.0,0.01049835]
[1768620113902,0.14819637,95258.0,95254.0,0.01049824]
[1768620114559,0.13769857,95258.0,95254.0,0.01049824]
[1768620114773,0.13769857,95258.0,95255.0,0.01049813]
[1768620115617,0.13769857,95258.0,95254.0,0.01049824]
[1768620115782,0.13769857,95258.0,95255.0,0.01049813]
[1768620116183,0.14819637,95258.0,95254.0,0.01049824]
[1768620117649,0.13769857,95258.0,95254.0,0.01049824]
[1768620117796,0.14819637,95258.0,95254.0,0.01049824]
[1768620119181,0.13769857,95258.0,95255.0,0.01049813]
[1768620121597,0.13769857,95258.0,95255.0,0.01042907]
[1768620121745,0.13769857,95258.0,95254.0,0.01049824]
[1768620122303,0.01049857,95258.0,95255.0,0.05912203]
[1768620122513,4.73e-05,95264.0,95259.0,0.01049769]
[1768620122514,0.1272,95262.0,95259.0,0.01049769]
[1768620122742,0.1272,95262.0,95259.0,0.01032466]
[1768620123675,0.1272,95262.0,95258.0,0.0104978]
[1768620123876,0.1272,95262.0,95259.0,0.01049769]
[1768620125388,0.1272,95262.0,95258.0,0.0104978]
[1768620125630,0.13769736,95262.0,95258.0,0.0104978]
[1768620126296,0.1272,95262.0,95258.0,0.0104978]
[1768620126907,0.13769736,95262.0,95258.0,0.0104978]
[1768620127928,0.1272,95262.0,95258.0,0.0104978]
[1768620128151,0.13769736,95262.0,95258.0,0.0104978]
[1768620131560,0.01049747,95261.0,95257.0,0.01049791]
[1768620132126,0.01049769,95259.0,95255.0,0.05912203]
[1768620132358,0.01049769,95259.0,95255.0,0.01049813]
[1768620132979,0.0104978,95258.0,95253.0,0.06298975]
[1768620133191,0.0104978,95258.0,95254.0,0.01049824]
[1768620134003,0.01049791,95257.0,95252.0,0.01049846]
[1768620134409,0.01049791,95257.0,95253.0,0.01049835]
[1768620136483,0.01049769,95259.0,95254.0,0.06298935]
[1768620136690,0.01049758,95260.0,95256.0,0.01049802]
[1768620137225,0.01049769,95259.0,95255.0,0.01049813]
[1768620137428,0.01049758,95260.0,95256.0,0.01049802]
[1768620138196,0.01049769,95259.0,95255.0,0.01049813]
[1768620140035,0.01049791,95257.0,95253.0,0.01049835]
[1768620140234,0.0104978,95258.0,95254.0,0.01049824]
[1768620141242,0.0104978,95258.0,95253.0,0.01049835]
[1768620141681,0.0104978,95258.0,95254.0,0.01049824]
[1768620142440,0.01049769,95259.0,95254.0,0.01049824]
[1768620142869,0.0104978,95258.0,95254.0,0.01049824]
[1768620143595,0.01049791,95257.0,95253.0,0.01049835]
[1768620144298,0.01049791,95257.0,95252.0,0.01049846]
[1768620144805,0.01049802,95256.0,95252.0,0.01049846]
[1768620145582,0.01049802,95256.0,95251.0,0.05249286]
[1768620145583,0.01049802,95256.0,95251.0,0.01049857]
[1768620145776,0.01049802,95256.0,95252.0,0.01049846]
[1768620146618,0.01049802,95256.0,95251.0,0.01049857]
[1768620146840,0.01049813,95255.0,95251.0,0.01049857]
[1768620147188,0.01049824,95254.0,95248.0,0.01049857]
[1768620147417,0.0104989,95248.0,95243.0,0.01049945]
[1768620147582,0.0104989,95248.0,95237.0,0.01050012]
[1768620147583,0.04689093,95252.0,95237.0,0.01050012]
[1768620147788,0.44459136,95253.0,95234.0,0.01065885]
[1768620147789,0.0419921,95237.0,95234.0,0.1273584]
[1768620147990,0.01050001,95238.0,95235.0,0.01065885]
[1768620148249,0.0104999,95239.0,95235.0,0.02115919]
[1768620148465,0.0104999,95239.0,95235.0,0.01050034]
[1768620148784,0.01049979,95240.0,95236.0,0.01050023]
[1768620148993,0.01049979,95240.0,95235.0,0.01050034]
[1768620149426,0.0104999,95239.0,95235.0,0.01050034]
[1768620150257,0.0104999,95239.0,95234.0,0.01065885]
[1768620150919,0.0104999,95239.0,95235.0,0.01050034]
[1768620152017,0.01050012,95237.0,95234.0,0.0001584]
[1768620152236,0.01050001,95238.0,95234.0,0.01065885]
[1768620153474,0.0104999,95239.0,95235.0,0.01050034]
[1768620154550,0.01049979,95240.0,95235.0,0.0630016]
[1768620154694,0.01049967,95241.0,95237.0,0.01050012]
[1768620155997,0.01049956,95242.0,95238.0,0.01050001]
[1768620156800,0.06299746,95242.0,95237.0,0.01050012]
[1768620156975,0.01049956,95242.0,95238.0,0.01050001]
[1768620157174,0.01049967,95241.0,95237.0,0.01050012]
[1768620157851,0.22658689,95246.0,95239.0,0.06299899]
[1768620158052,0.01049934,95244.0,95240.0,0.01049979]
[1768620158274,0.01049923,95245.0,95240.0,0.01049979]
[1768620158759,0.01049923,95245.0,95240.0,0.06299869]
[1768620158941,0.13769912,95246.0,95241.0,0.01049967]
[1768620159151,0.13769912,95246.0,95242.0,0.01049956]
[1768620159351,0.01049923,95245.0,95241.0,0.01049967]
[1768620159560,0.1272,95246.0,95242.0,0.01049956]
[1768620159736,0.1272,95246.0,95243.0,0.01049945]
[1768620160334,0.13769912,95246.0,95242.0,0.01049956]
[1768620160722,0.1272,95246.0,95243.0,0.01049945]
[1768620160920,0.13769912,95246.0,95242.0,0.01049956]
[1768620161362,0.1272,95246.0,95243.0,0.01049945]
[1768620161572,0.13769912,95246.0,95241.0,0.01049967]
[1768620161770,0.13769912,95246.0,95242.0,0.01049956]
[1768620161974,0.01049923,95245.0,95241.0,0.01049967]
[1768620162129,0.01049923,95245.0,95240.0,0.01049979]
[1768620162329,0.01049923,95245.0,95241.0,0.01049967]
[1768620162753,0.01049934,95244.0,95240.0,0.01049979]
[1768620162934,0.01049945,95243.0,95239.0,0.0104999]
[1768620164542,0.01049945,95243.0,95237.0,0.01050012]
[1768620164543,0.01049956,95242.0,95237.0,0.01050012]
[1768620164741,0.01049956,95242.0,95238.0,0.01050001]
[1768620165002,0.01049945,95243.0,95239.0,0.0104999]
[1768620165354,0.01049956,95242.0,95238.0,0.01050001]
[1768620165816,0.01049945,95243.0,95239.0,0.0104999]
[1768620166019,0.01049934,95244.0,95239.0,0.0104999]
[1768620166197,0.01049934,95244.0,95240.0,0.01049979]
[1768620166400,0.01049923,95245.0,95240.0,0.01049979]
[1768620166607,0.01049923,95245.0,95241.0,0.01049967]
[1768620166988,0.13769912,95246.0,95241.0,0.01049967]
[1768620167192,0.1272,95246.0,95242.0,0.01049956]
[1768620167818,0.13769912,95246.0,95242.0,0.01049956]
[1768620168214,0.13769912,95246.0,95241.0,0.01049967]
[1768620168876,0.1272,95246.0,95242.0,0.01049956]
[1768620169462,0.1272,95246.0,95243.0,0.01049945]
[1768620169587,0.1272,95246.0,95242.0,0.01049956]
[1768620169925,0.1272,95246.0,95243.0,0.01049945]
[1768620170274,0.1272,95246.0,95242.0,0.01049956]
[1768620170476,0.13769912,95246.0,95241.0,0.01049967]
[1768620170675,0.13769912,95246.0,95242.0,0.01049956]
[1768620170916,0.1272,95246.0,95241.0,0.01049967]
[1768620172311,0.13769912,95246.0,95241.0,0.01049967]
[1768620172544,0.13769912,95246.0,95242.0,0.01049956]
[1768620175225,0.1272,95246.0,95243.0,0.01049945]
[1768620175493,0.13769912,95246.0,95242.0,0.01049956]
[1768620176638,0.1272,95246.0,95243.0,0.01049945]
[1768620177257,0.1272,95246.0,95243.0,0.06299655]
[1768620177464,0.1272,95246.0,95243.0,0.01049945]
[1768620179684,0.1272,95246.0,95243.0,0.06299671]
[1768620179955,0.1272,95246.0,95243.0,0.01049945]
[1768620180302,0.1272,95246.0,95243.0,0.0629967]
[1768620180496,0.1272,95246.0,95243.0,0.01049945]
[1768620181334,0.1272,95246.0,95243.0,0.06299662]
[1768620181519,0.1272,95246.0,95243.0,0.01049945]
[1768620183422,0.01049901,95247.0,95243.0,0.01049945]
[1768620184580,0.01049901,95247.0,95242.0,0.01049956]
[1768620184909,0.01049901,95247.0,95243.0,0.01049945]
[1768620185130,0.01049912,95246.0,95242.0,0.01049956]
[1768620185905,0.01049901,95247.0,95243.0,0.01049945]
[1768620186085,0.01049912,95246.0,95242.0,0.01049956]
[1768620186426,0.01049901,95247.0,95243.0,0.01049945]
[1768620188441,0.01049912,95246.0,95242.0,0.01049956]
[1768620189147,0.01049901,95247.0,95243.0,0.01049945]
[1768620190092,0.02099791,95249.0,95244.0,0.01049934]
[1768620190301,0.01049901,95247.0,95243.0,0.01049945]
[1768620191148,0.0104989,95248.0,95244.0,0.01049934]
[1768620191370,0.02099791,95249.0,95244.0,0.01049934]
[1768620191586,0.0104989,95248.0,95244.0,0.01049934]
[1768620192675,0.0104989,95248.0,95243.0,0.06299672]
[1768620192676,0.01049901,95247.0,95243.0,0.01049945]
[1768620193662,0.01049912,95246.0,95242.0,0.01049956]
[1768620194655,0.01049923,95245.0,95241.0,0.01049967]
[1768620194857,0.01049934,95244.0,95240.0,0.01049979]
[1768620195970,0.01049934,95244.0,95238.0,0.01050001]
[1768620195971,0.01049934,95244.0,95238.0,0.06299989]
[1768620196174,0.01049945,95243.0,95239.0,0.0104999]
[1768620196369,0.01049934,95244.0,95240.0,0.01049979]
[1768620196981,0.01049923,95245.0,95241.0,0.01049967]
[1768620197808,0.01049934,95244.0,95240.0,0.01049979]
[1768620198844,0.01049912,95246.0,95242.0,0.01049956]
[1768620199456,0.01049923,95245.0,95241.0,0.01049967]
[1768620202054,0.01049923,95245.0,95240.0,0.01049979]
[1768620202055,0.01049934,95244.0,95239.0,0.0104999]
[1768620202264,0.06299613,95244.0,95239.0,0.0104999]
[1768620203212,0.01049945,95243.0,95239.0,0.0104999]
[1768620203890,0.01049934,95244.0,95240.0,0.01049979]
[1768620204714,0.01049945,95243.0,95239.0,0.0104999]
[1768620205186,0.01049945,95243.0,95238.0,0.01050001]
[1768620205187,0.01049956,95242.0,95238.0,0.01050001]
[1768620205389,0.00962539,95242.0,95238.0,0.01050001]
[1768620208529,0.05249625,95245.0,95239.0,0.0104999]
[1768620208731,0.01049923,95245.0,95242.0,0.00157403]
[1768620210414,0.01049912,95246.0,95242.0,0.00157403]
[1768620210621,0.01049923,95245.0,95242.0,0.00157403]
[1768620211247,0.01049912,95246.0,95242.0,0.00157403]
[1768620211459,0.01049912,95246.0,95242.0,0.01207359]
[1768620211663,0.01049923,95245.0,95242.0,0.00157403]
[1768620212791,0.06299544,95245.0,95242.0,0.00157403]
[1768620212986,0.01049912,95246.0,95242.0,0.00157403]
[1768620213193,0.01049923,95245.0,95242.0,0.00157403]
[1768620213398,0.06299567,95245.0,95242.0,0.00157403]
[1768620213819,0.06299558,95245.0,95242.0,0.00157403]
[1768620215762,0.01049923,95245.0,95242.0,0.00157403]
[1768620218834,0.01049912,95246.0,95242.0,0.01207359]